[Event "WYCC U18 Open 2019"]
[Site "Mumbai"]
[Date "2019.10.05"]
[Round "5.1"]
[White "Praggnanandhaa R"]
[Black "Arjun Kalyan"]
[Result "*"]
[ECO "C50"]
[WhiteElo "2567"]
[BlackElo "2483"]
[Annotator "ChessBase"]
[PlyCount "36"]
[EventDate "2019.10.02"]
[EventType "swiss"]
[EventCountry "IND"]
[SourceTitle "playchess.com"]
[Source "ChessBase"]
[SourceQuality "1"]
[TimeControl "40/5400+30:1800+30"]

1. e4 {[%emt 0:00:00]} e5 {[%emt 0:00:00]} 2. Nf3 {[%emt 0:00:00]} Nc6 {[%emt 0:00:00]} 3. Bc4 {[%emt 0:00:04]} Nf6 {[%emt 0:00:00]} 4. d3 {[%emt 0:00:05]} Bc5 {[%emt 0:00:00]} 5. O-O {[%emt 0:00:09]} d6 {[%emt 0:00:14]} 6. c3 {[%emt 0:00:06]} a6 {[%emt 0:00:23]} 7. a4 {[%emt 0:00:07]} Ba7 {[%emt 0:00:34]} 8. Re1 {[%emt 0:00:28]} O-O {[%emt 0:00:10]} 9. h3 {[%emt 0:00:16]} Ne7 {[%emt 0:00:33]} 10. Nbd2 {[%emt 0:01:48]} Ng6 {[%emt 0:00:20]} 11. d4 {[%emt 0:00:30]} c6 {[%emt 0:01:26]} 12. Ba2 {[%emt 0:01:34]} h6 {[%emt 0:10:03]} 13. Bb1 {[%emt 0:03:43]} Re8 {[%emt 0:03:13]} 14. Nf1 {[%emt 0:02:51]} Be6 {[%emt 0:09:45]} 15. Ng3 {[%emt 0:02:42]} Qc7 {[%emt 0:22:38]} 16. Be3 {[%emt 0:13:39]} Kh7 {[%emt 0:04:21]} 17. Qd2 {[%emt 0:11:34]} Rad8 {[%emt 0:01:09]} 18. Bd3 {[%emt 0:02:03]} a5 {[%emt 0:04:15]} *

[Event "WYCC U18 Open 2019"]
[Site "Mumbai"]
[Date "2019.10.05"]
[Round "5.10"]
[White "Rahul Srivatshav P"]
[Black "Chylewski, Patryk"]
[Result "*"]
[ECO "A40"]
[WhiteElo "2460"]
[BlackElo "2348"]
[Annotator "ChessBase"]
[PlyCount "31"]
[EventDate "2019.10.02"]
[EventType "swiss"]
[EventCountry "IND"]
[SourceTitle "playchess.com"]
[Source "ChessBase"]
[SourceQuality "1"]
[TimeControl "40/5400+30:1800+30"]

1. d4 {[%emt 0:00:00]} Nf6 {[%emt 0:00:00]} 2. c4 {[%emt 0:00:41]} e6 {[%emt 0:00:00]} 3. g3 {[%emt 0:00:05]} d5 {[%emt 0:00:48]} 4. Nf3 {[%emt 0:00:04]} Bb4+ {[%emt 0:00:41]} 5. Bd2 {[%emt 0:00:18]} Be7 {[%emt 0:03:58]} 6. Bg2 {[%emt 0:00:46]} c6 {[%emt 0:00:08]} 7. Qc2 {[%emt 0:03:54]} b6 {[%emt 0:00:36]} 8. O-O {[%emt 0:03:06]} Bb7 {[%emt 0:00:16]} 9. Nc3 {[%emt 0:13:24]} dxc4 {[%emt 0:09:40]} 10. e4 Nbd7 {[%emt 0:01:11]} 11. Rfd1 {[%emt 0:16:10]} O-O {[%emt 0:03:50]} 12. Bf4 {[%emt 0:00:37]} b5 {[%emt 0:10:38]} 13. h3 {[%emt 0:00:28]} Nb6 {[%emt 0:06:39]} 14. Ne2 {[%emt 0:12:17]} Nfd7 {[%emt 0:01:44]} 15. h4 {[%emt 0:03:38]} h6 {[%emt 0:01:48]} 16. Nh2 {[%emt 0:05:19]} *

[Event "WYCC U18 Open 2019"]
[Site "Mumbai"]
[Date "2019.10.05"]
[Round "5.12"]
[White "Srijit Paul"]
[Black "Mendonca, Leon Luke"]
[Result "*"]
[ECO "B92"]
[WhiteElo "2317"]
[BlackElo "2388"]
[Annotator "ChessBase"]
[PlyCount "31"]
[EventDate "2019.10.02"]
[EventType "swiss"]
[EventCountry "IND"]
[SourceTitle "playchess.com"]
[Source "ChessBase"]
[SourceQuality "1"]
[TimeControl "40/5400+30:1800+30"]

1. e4 {[%emt 0:00:00]} c5 {[%emt 0:00:00]} 2. Nf3 {[%emt 0:00:00]} d6 {[%emt 0:00:00]} 3. d4 {[%emt 0:00:00]} cxd4 {[%emt 0:00:00]} 4. Nxd4 {[%emt 0:00:00]} Nf6 {[%emt 0:00:00]} 5. Nc3 {[%emt 0:00:00]} a6 {[%emt 0:00:00]} 6. Be2 {[%emt 0:00:07]} e5 {[%emt 0:00:21]} 7. Nb3 {[%emt 0:00:05]} Be7 {[%emt 0:00:20]} 8. g4 {[%emt 0:01:44]} h6 {[%emt 0:02:22]} 9. Be3 {[%emt 0:02:18]} Be6 {[%emt 0:05:05]} 10. Bf3 {[%emt 0:08:41]} Nbd7 {[%emt 0:05:38]} 11. h4 {[%emt 0:03:41]} Nb6 {[%emt 0:08:16]} 12. Nd2 {[%emt 0:00:30]} Rc8 {[%emt 0:08:05]} 13. a3 {[%emt 0:13:08]} g6 {[%emt 0:12:19]} 14. Qe2 {[%emt 0:09:16]} Nfd7 {[%emt 0:12:33]} 15. Qd3 {[%emt 0:02:44]} Nc5 {[%emt 0:05:11]} 16. Bxc5 {[%emt 0:01:03]} *

[Event "WYCC U18 Open 2019"]
[Site "Mumbai"]
[Date "2019.10.05"]
[Round "5.14"]
[White "Vatsal Singhania"]
[Black "Stoleriu, George"]
[Result "*"]
[ECO "C04"]
[WhiteElo "2157"]
[BlackElo "2351"]
[Annotator "ChessBase"]
[PlyCount "42"]
[EventDate "2019.10.02"]
[EventType "swiss"]
[EventCountry "IND"]
[SourceTitle "playchess.com"]
[Source "ChessBase"]
[SourceQuality "1"]
[TimeControl "40/5400+30:1800+30"]

1. e4 {[%emt 0:00:00]} e6 {[%emt 0:00:00]} 2. d4 {[%emt 0:00:00]} d5 {[%emt 0:00:00]} 3. Nd2 {[%emt 0:00:00]} Nc6 {[%emt 0:00:00]} 4. Ngf3 {[%emt 0:00:00]} Nf6 {[%emt 0:00:00]} 5. e5 {[%emt 0:00:00]} Nd7 {[%emt 0:00:00]} 6. Nb3 {[%emt 0:00:00]} Be7 {[%emt 0:00:00]} 7. Bb5 {[%emt 0:00:08]} a5 {[%emt 0:00:13]} 8. a4 {[%emt 0:00:04]} Na7 {[%emt 0:07:08]} 9. Be2 {[%emt 0:00:46]} b6 {[%emt 0:00:12]} 10. O-O {[%emt 0:00:43]} O-O {[%emt 0:00:17]} 11. Bf4 {[%emt 0:07:36]} c5 {[%emt 0:00:24]} 12. c3 {[%emt 0:02:57]} Nc6 {[%emt 0:02:19]} 13. Bb5 {[%emt 0:06:17]} Na7 {[%emt 0:05:59]} 14. Be2 {[%emt 0:02:35]} Nc6 {[%emt 0:01:23]} 15. Bb5 {[%emt 0:03:16]} Na7 {[%emt 0:19:25]} 16. c4 {[%emt 0:10:39]} Bb7 {[%emt 0:06:33]} 17. Rc1 {[%emt 0:03:18]} dxc4 {[%emt 0:08:25]} 18. Bxc4 {[%emt 0:01:41]} cxd4 {[%emt 0:00:05]} 19. Nfxd4 {[%emt 0:01:56]} Nc5 {[%emt 0:01:29]} 20. Qg4 {[%emt 0:02:13]} Kh8 {[%emt 0:01:22]} 21. Rfd1 {[%emt 0:02:41]} Qe8 {[%emt 0:01:15]} *

[Event "WYCC U18 Open 2019"]
[Site "Mumbai"]
[Date "2019.10.05"]
[Round "5.15"]
[White "Gaurav, Rajesh Zagade"]
[Black "Blohberger, Felix"]
[Result "0-1"]
[ECO "A40"]
[WhiteElo "2053"]
[BlackElo "2448"]
[Annotator "RC"]
[PlyCount "112"]
[EventDate "2019.10.02"]
[EventType "swiss"]
[EventCountry "IND"]
[SourceTitle "playchess.com"]
[Source "ChessBase"]
[SourceQuality "1"]
[TimeControl "40/5400+30:1800+30"]

1. d4 {[%emt 0:00:00]} Nf6 {[%emt 0:00:00]} 2. c4 {[%emt 0:00:00]} e6 {[%emt 0:00:00]} 3. g3 {[%emt 0:00:00]} Bb4+ {[%emt 0:01:12]} 4. Bd2 {[%emt 0:00:02]} Be7 {[%emt 0:03:45]} 5. Bg2 {[%emt 0:00:18]} d5 {[%emt 0:00:05]} 6. Nf3 {[%emt 0:00:45]} Ne4 {[%emt 0:00:45]} 7. Qc2 {[%emt 0:01:53]} c6 {[%emt 0:00:21]} 8. O-O {[%emt 0:01:05]} Nd7 {[%emt 0:01:15]} 9. Rd1 {[%emt 0:01:25]} f5 {[%emt 0:01:15]} 10. Be1 {[%emt 0:01:17]} g5 {[%emt 0:05:42]} 11. Nbd2 {[%emt 0:03:51]} g4 {[%emt 0:07:24]} 12. Ne5 {[%emt 0:00:20]} Nxe5 {[%emt 0:00:49]} 13. dxe5 {[%emt 0:00:37]} Qb6 {[%emt 0:01:41]} 14. Rac1 {[%emt 0:12:32]} Bd7 {[%emt 0:06:40]} 15. Nb3 {[%emt 0:06:28]} h5 {[%emt 0:09:22]} 16. Bxe4 {[%emt 0:12:07]} fxe4 {[%emt 0:02:04]} 17. Bd2 {[%emt 0:09:24]} Qa6 {[%emt 0:07:23]} 18. Be3 {[%emt 0:02:27]} b6 {[%emt 0:04:13]} 19. f3 {[%emt 0:06:44]} Qxc4 {[%emt 0:06:11]} 20. Qxc4 {[%emt 0:10:54]} dxc4 {[%emt 0:00:31]} 21. Rxc4 {[%emt 0:00:14]} exf3 {[%emt 0:03:37]} 22. exf3 {[%emt 0:00:12]} gxf3 {[%emt 0:00:11]} 23. Nd4 {[%emt 0:01:19]} c5 {[%emt 0:02:25]} 24. Nxf3 {[%emt 0:00:28]} Bc6 {[%emt 0:02:38]} 25. Ng5 {[%emt 0:03:09]} Bd5 {[%emt 0:00:50]} 26. Rc3 {[%emt 0:01:12]} h4 {[%emt 0:01:36]} 27. Bf4 {[%emt 0:04:46]} hxg3 {[%emt 0:12:02]} 28. Rxg3 {[%emt 0:00:17]} Rh4 {[%emt 0:00:50]} 29. Bc1 {[%emt 0:03:31]} Kd7 {[%emt 0:04:05]} 30. Nf3 {[%emt 0:03:32]} Rh5 {[%emt 0:02:37]} 31. b3 {[%emt 0:08:23]} Kc6 {[%emt 0:02:05]} 32. Bb2 {[%emt 0:01:34]} Rah8 {[%emt 0:04:21]} 33. Rd2 {[%emt 0:00:33]} Rf8 {[%emt 0:01:17]} 34. Rd3 {[%emt 0:02:41]} a5 {[%emt 0:00:19]} 35. Ba1 {[%emt 0:02:41]} b5 {[%emt 0:03:18]} 36. Bb2 {[%emt 0:00:36]} b4 {[%emt 0:00:47]} 37. a3 {[%emt 0:00:40]} Rfh8 {[%emt 0:01:26]} 38. axb4 {[%emt 0:00:19]} axb4 {[%emt 0:00:05]} 39. h3 {[%emt 0:00:35]} Be4 {[%emt 0:03:47]} 40. Re3 {[%emt 0:00:31]} Bf5 {[%emt 0:00:15]} 41. h4 {[%emt 0:10:39]} Bxh4 42. Nxh4 {[%emt 0:00:05]} Rxh4 {[%emt 0:01:09]} 43. Rg2 {[%emt 0:02:41]} Rh3 {[%emt 0:08:24]} 44. Rge2 {[%emt 0:02:23]} Rxe3 {[%emt 0:01:15]} 45. Rxe3 {[%emt 0:00:06]} Rh3 {[%emt 0:00:07]} 46. Rxh3 {[%emt 0:01:35]} Bxh3 {[%emt 0:00:05]} 47. Kf2 {[%emt 0:00:03]} Bf5 {[%emt 0:00:05]} 48. Ke3 {[%emt 0:00:04]} Bc2 {[%emt 0:00:04]} 49. Kd2 {[%emt 0:00:11]} Bxb3 {[%emt 0:00:06]} 50. Kc1 {[%emt 0:00:53]} Kd5 {[%emt 0:00:11]} 51. Kb1 {[%emt 0:00:11]} c4 {[%emt 0:00:32]} 52. Bc1 {[%emt 0:00:50]} c3 {[%emt 0:00:14]} 53. Bf4 {[%emt 0:00:15]} Ba4 {[%emt 0:00:23]} 54. Bh2 {[%emt 0:00:27]} b3 {[%emt 0:00:06]} 55. Ka1 {[%emt 0:03:09]} Bb5 {[%emt 0:01:11]} 56. Bf4 {[%emt 0:00:47]} b2+ {[%emt 0:00:08]} 0-1

[Event "WYCC U18 Open 2019"]
[Site "Mumbai"]
[Date "2019.10.05"]
[Round "5.15"]
[White "Gaurav Rajesh Zagade"]
[Black "Blohberger, Felix"]
[Result "*"]
[ECO "A40"]
[WhiteElo "2053"]
[BlackElo "2448"]
[Annotator "ChessBase"]
[PlyCount "35"]
[EventDate "2019.10.02"]
[EventType "swiss"]
[EventCountry "IND"]
[SourceTitle "playchess.com"]
[Source "ChessBase"]
[SourceQuality "1"]
[TimeControl "40/5400+30:1800+30"]

1. d4 {[%emt 0:00:00]} Nf6 {[%emt 0:00:00]} 2. c4 {[%emt 0:00:00]} e6 {[%emt 0:00:00]} 3. g3 {[%emt 0:00:00]} Bb4+ {[%emt 0:01:12]} 4. Bd2 {[%emt 0:00:02]} Be7 {[%emt 0:03:45]} 5. Bg2 {[%emt 0:00:18]} d5 {[%emt 0:00:05]} 6. Nf3 {[%emt 0:00:45]} Ne4 {[%emt 0:00:45]} 7. Qc2 {[%emt 0:01:53]} c6 {[%emt 0:00:21]} 8. O-O {[%emt 0:01:05]} Nd7 {[%emt 0:01:15]} 9. Rd1 {[%emt 0:01:25]} f5 {[%emt 0:01:15]} 10. Be1 {[%emt 0:01:17]} g5 {[%emt 0:05:42]} 11. Nbd2 {[%emt 0:03:51]} g4 {[%emt 0:07:24]} 12. Ne5 {[%emt 0:00:20]} Nxe5 {[%emt 0:00:49]} 13. dxe5 {[%emt 0:00:37]} Qb6 {[%emt 0:01:41]} 14. Rac1 {[%emt 0:12:32]} Bd7 {[%emt 0:06:40]} 15. Nb3 {[%emt 0:06:28]} h5 {[%emt 0:09:22]} 16. Bxe4 {[%emt 0:12:07]} fxe4 {[%emt 0:02:04]} 17. Bd2 {[%emt 0:09:24]} Qa6 {[%emt 0:07:23]} 18. Be3 {[%emt 0:02:27]} *

[Event "WYCC U18 Open 2019"]
[Site "Mumbai"]
[Date "2019.10.05"]
[Round "5.16"]
[White "Kizatbay, Abyl"]
[Black "Manu David Suthandram R"]
[Result "*"]
[ECO "B30"]
[WhiteElo "2160"]
[BlackElo "2403"]
[Annotator "ChessBase"]
[PlyCount "29"]
[EventDate "2019.10.02"]
[EventType "swiss"]
[EventCountry "IND"]
[SourceTitle "playchess.com"]
[Source "ChessBase"]
[SourceQuality "1"]
[TimeControl "40/5400+30:1800+30"]

1. e4 {[%emt 0:00:00]} c5 {[%emt 0:00:00]} 2. Nf3 {[%emt 0:00:00]} Nc6 {[%emt 0:00:00]} 3. Bb5 {[%emt 0:00:07]} e6 {[%emt 0:00:07]} 4. O-O {[%emt 0:00:22]} Nge7 {[%emt 0:01:19]} 5. Re1 {[%emt 0:00:11]} a6 {[%emt 0:01:49]} 6. Bf1 {[%emt 0:01:02]} g6 {[%emt 0:00:36]} 7. c3 {[%emt 0:04:21]} Bg7 {[%emt 0:00:37]} 8. d4 {[%emt 0:00:05]} cxd4 {[%emt 0:04:31]} 9. cxd4 {[%emt 0:00:06]} d6 {[%emt 0:01:44]} 10. Nc3 {[%emt 0:10:52]} O-O {[%emt 0:04:58]} 11. Bg5 {[%emt 0:07:30]} h6 {[%emt 0:13:49]} 12. Be3 {[%emt 0:08:39]} d5 {[%emt 0:09:31]} 13. e5 {[%emt 0:08:54]} Nf5 {[%emt 0:00:19]} 14. h3 {[%emt 0:17:39]} Bd7 {[%emt 0:03:15]} 15. Bc1 {[%emt 0:05:19]} *